bitfinex/quotes_SOLUSD_20220128
["timestamp","ask_amount","ask_price","bid_price","bid_amount"]
[1643409066920,16.409,91.5,91.424,3.24375156]
[1643409067121,16.409,91.5,91.426,107.5]
[1643409067321,16.409,91.5,91.427,0.45]
[1643409067520,16.409,91.5,91.427,3.44375156]
[1643409067921,16.409,91.5,91.427,0.2]
[1643409068526,16.409,91.5,91.436,6.0]
[1643409068724,16.409,91.5,91.437,23.3214]
[1643409068923,16.409,91.5,91.438,0.2]
[1643409069124,16.409,91.5,91.438,107.7]
[1643409069323,16.409,91.5,91.439,0.2]
[1643409069524,16.409,91.5,91.438,0.2]
[1643409070925,16.409,91.5,91.438,107.7]
[1643409071127,16.409,91.5,91.439,0.2]
[1643409073631,15.909,91.5,91.439,0.2]
[1643409075031,16.405,91.52,91.439,0.2]
[1643409075529,16.405,91.52,91.449,107.5]
[1643409075729,16.405,91.52,91.45,0.2]
[1643409076331,16.405,91.52,91.451,107.5]
[1643409076531,16.405,91.52,91.452,0.2]
[1643409078333,16.405,91.52,91.461,6.0]
[1643409078533,16.405,91.52,91.462,24.2814]
[1643409078736,16.405,91.52,91.463,0.2]
[1643409082246,16.405,91.52,91.463,107.7]
[1643409082438,16.405,91.52,91.464,0.2]
[1643409085937,54.686,91.54,91.464,0.2]
[1643409093652,54.186,91.54,91.464,0.2]
[1643409103401,16.401,91.54,91.464,0.2]
[1643409103599,16.401,91.54,91.465,2.95669142]
[1643409103999,16.401,91.54,91.464,0.2]
[1643409104603,16.401,91.54,91.464,0.45]
[1643409105205,16.401,91.54,91.465,2.95669142]
[1643409105409,16.398,91.56,91.473,6.0]
[1643409105606,16.398,91.56,91.476,107.5]
[1643409105807,16.398,91.56,91.477,0.2]
[1643409106007,16.398,91.56,91.486,6.0]
[1643409106206,16.398,91.56,91.487,24.7849]
[1643409106507,16.398,91.56,91.486,8.59]
[1643409106908,16.398,91.56,91.487,23.2865]
[1643409108511,16.398,91.56,91.488,107.5]
[1643409108913,16.398,91.56,91.498,6.0]
[1643409109113,16.398,91.56,91.5,107.5]
[1643409109333,15.898,91.56,91.5,107.5]
[1643409109535,15.898,91.56,91.51,6.0]
[1643409109933,16.394,91.58,91.511,107.5]
[1643409110133,16.394,91.58,91.511,25.55769142]
[1643409110332,16.394,91.58,91.521,6.0]
[1643409113333,16.394,91.58,91.511,22.601]
[1643409117445,16.394,91.58,91.512,107.5]
[1643409117644,16.394,91.58,91.522,6.0]
[1643409120149,16.394,91.58,91.512,107.5]
[1643409126052,16.394,91.58,91.522,6.0]
[1643409126351,16.394,91.58,91.523,24.4226]
[1643409135798,16.394,91.58,91.524,107.5]
[1643409136598,16.394,91.58,91.534,6.0]
[1643409136804,16.394,91.58,91.524,107.5]
[1643409137005,16.394,91.58,91.534,6.0]
[1643409137206,16.394,91.58,91.535,107.5]
[1643409137402,24.513,91.599,91.533,6.0]
[1643409137603,24.513,91.599,91.534,29.1861]
[1643409137803,24.513,91.599,91.535,107.5]
[1643409138901,16.39,91.6,91.536,0.25]
[1643409141004,16.39,91.6,91.545,6.0]
[1643409141305,16.39,91.6,91.546,23.336]
[1643409145512,16.39,91.6,91.547,107.5]
[1643409145915,16.39,91.6,91.546,23.336]
[1643409146211,16.39,91.6,91.547,107.5]
[1643409148417,1.47162698,91.612,91.547,107.5]
[1643409149116,1.47162698,91.613,91.547,107.5]
[1643409149416,16.388,91.61,91.546,23.336]
[1643409151423,1.47162698,91.609,91.546,23.336]
[1643409151821,1.47162698,91.607,91.546,23.336]
[1643409152419,1.47162698,91.606,91.546,23.336]
[1643409152621,1.47162698,91.605,91.546,23.336]
[1643409152820,1.47162698,91.604,91.546,23.336]
[1643409153020,1.47162698,91.606,91.546,23.336]
[1643409153220,1.47162698,91.606,91.547,107.5]
[1643409153422,1.47162698,91.608,91.547,107.5]
[1643409153624,1.47162698,91.606,91.547,107.5]
[1643409154020,1.47162698,91.605,91.547,107.5]
[1643409156460,1.47162698,91.604,91.547,107.5]
[1643409157252,1.47162698,91.603,91.547,107.5]
[1643409158451,1.47162698,91.602,91.547,107.5]
[1643409160052,1.47162698,91.603,91.547,107.5]
[1643409160255,1.47162698,91.606,91.547,107.5]
[1643409161254,1.47162698,91.605,91.547,107.5]
[1643409162059,1.47162698,91.604,91.547,107.5]
[1643409163258,1.47162698,91.605,91.547,107.5]
[1643409163457,1.47162698,91.604,91.547,107.5]
[1643409163757,1.47162698,91.603,91.547,107.5]
[1643409164560,1.47162698,91.602,91.547,107.5]
[1643409165163,1.47162698,91.603,91.547,107.5]
[1643409165360,1.47162698,91.604,91.547,107.5]
[1643409165560,1.47162698,91.603,91.547,107.5]
[1643409165968,1.47162698,91.603,91.594,0.3226245]
[1643409166362,3.03210003,91.6,91.594,0.3226245]
[1643409166665,1.47162698,91.606,91.594,0.3226245]
[1643409166866,1.47162698,91.604,91.594,0.3226245]
[1643409167665,1.47162698,91.603,91.594,0.3226245]
[1643409167864,1.47162698,91.604,91.594,0.3226245]
[1643409168063,1.47162698,91.603,91.594,0.3226245]
[1643409168865,1.47162698,91.604,91.594,0.3226245]
[1643409169569,1.47162698,91.605,91.594,0.3226245]
[1643409170064,1.47162698,91.607,91.594,0.3226245]
[1643409170666,22.9744,91.609,91.594,0.3226245]
[1643409171067,16.388,91.61,91.594,0.3226245]
[1643409171869,1.47162698,91.622,91.594,0.3226245]
[1643409172467,1.47162698,91.623,91.594,0.3226245]
[1643409172667,1.47162698,91.622,91.594,0.3226245]
[1643409174272,1.47162698,91.621,91.594,0.3226245]
[1643409174870,1.47162698,91.623,91.594,0.3226245]
[1643409175170,1.47162698,91.622,91.594,0.3226245]
[1643409176072,1.47162698,91.624,91.594,0.3226245]
[1643409176269,1.47162698,91.625,91.594,0.3226245]
[1643409176474,1.47162698,91.624,91.594,0.3226245]
[1643409177271,1.47162698,91.625,91.594,0.3226245]
[1643409177670,1.47162698,91.626,91.594,0.3226245]
[1643409177872,1.47162698,91.627,91.594,0.3226245]
[1643409179476,1.47162698,91.626,91.594,0.3226245]
[1643409179875,1.47162698,91.627,91.594,0.3226245]
[1643409180073,1.47162698,91.628,91.594,0.3226245]
[1643409180496,25.27602698,91.629,91.594,0.3226245]
[1643409180697,23.8044,91.629,91.594,0.3226245]
[1643409181304,25.27602698,91.629,91.594,0.3226245]
[1643409181700,23.8044,91.629,91.594,0.3226245]
[1643409182404,25.27602698,91.629,91.594,0.3226245]
[1643409182805,23.8044,91.629,91.594,0.3226245]
[1643409186803,23.3044,91.629,91.594,0.3226245]
[1643409195818,16.386,91.63,91.594,0.3226245]
[1643409200426,1.47162698,91.64,91.594,0.3226245]
[1643409201727,1.47162698,91.641,91.594,0.3226245]
[1643409201927,1.47162698,91.64,91.594,0.3226245]
[1643409204132,1.47162698,91.639,91.594,0.3226245]
[1643409204533,1.47162698,91.638,91.594,0.3226245]
[1643409205034,1.47162698,91.639,91.594,0.3226245]
[1643409207359,1.47162698,91.64,91.594,0.3226245]
[1643409207562,1.47162698,91.641,91.594,0.3226245]
[1643409207959,1.47162698,91.64,91.594,0.3226245]
[1643409208965,1.47162698,91.641,91.594,0.3226245]
[1643409209564,1.47162698,91.64,91.594,0.3226245]
[1643409210165,1.47162698,91.639,91.594,0.3226245]
[1643409210561,1.47162698,91.64,91.594,0.3226245]
[1643409210761,1.47162698,91.639,91.594,0.3226245]
[1643409213265,1.47162698,91.638,91.594,0.3226245]
[1643409214065,1.47162698,91.639,91.594,0.3226245]
[1643409216569,1.47162698,91.638,91.594,0.3226245]
[1643409219774,16.383,91.64,91.594,0.3226245]
[1643409219775,1.47162698,91.639,91.594,0.3226245]
[1643409221276,17.85462698,91.64,91.594,0.3226245]
[1643409221576,1.47162698,91.639,91.594,0.3226245]
[1643409222177,17.85462698,91.64,91.594,0.3226245]
[1643409222379,16.383,91.64,91.594,0.3226245]
[1643409293101,16.383,91.64,91.63,0.3226245]
[1643409320761,16.383,91.64,91.631,1.4041505]
[1643409337014,13.883,91.64,91.631,1.4041505]
[1643409337721,16.91510003,91.64,91.631,1.4041505]
[1643409342721,3.03210003,91.64,91.631,1.4041505]
[1643409364347,16.38,91.66,91.631,1.4041505]
[1643409381093,31.99,91.66,91.631,1.4041505]
[1643409381890,23.7149,91.659,91.631,1.4041505]
[1643409437776,31.99,91.66,91.631,1.4041505]
[1643409439278,23.6783,91.659,91.631,1.4041505]
[1643409444007,25.14992698,91.659,91.631,1.4041505]
[1643409444406,23.6783,91.659,91.631,1.4041505]
[1643409446508,1.47162698,91.658,91.631,1.4041505]
[1643409446909,16.387,91.65,91.631,1.4041505]
[1643409448213,31.997,91.65,91.631,1.4041505]
[1643409461431,31.997,91.65,91.631,13.8041505]
[1643409471268,16.387,91.65,91.631,13.8041505]
[1643409473773,16.387,91.65,91.631,1.4041505]
[1643409502125,31.99,91.67,91.631,1.4041505]
[1643409509035,15.61,91.67,91.631,1.4041505]
[1643409513740,24.4168,91.669,91.631,1.4041505]
[1643409514938,31.991,91.67,91.631,1.4041505]
[1643409515342,1.47162698,91.684,91.631,1.4041505]
[1643409515539,1.47162698,91.691,91.631,1.4041505]
[1643409515741,1.47162698,91.694,91.631,1.4041505]
[1643409515940,1.47162698,91.698,91.631,1.4041505]
[1643409516140,1.47162698,91.703,91.631,21.0513645]
[1643409516940,1.47162698,91.704,91.631,21.0513645]
[1643409517146,1.47162698,91.705,91.631,21.0513645]
[1643409517641,1.47162698,91.706,91.641,6.0]
[1643409517842,1.47162698,91.708,91.641,6.0]
[1643409518042,1.47162698,91.708,91.642,7.4041505]
[1643409518445,31.985,91.71,91.643,23.0587]
[1643409518643,16.375,91.71,91.653,6.0]
[1643409519644,23.5405,91.719,91.653,6.0]
[1643409520244,23.5405,91.719,91.654,24.9213]
[1643409520646,23.5405,91.719,91.664,6.0]
[1643409521545,23.5405,91.719,91.665,6.0]
[1643409522545,15.61,91.72,91.665,6.0]
[1643409524243,15.61,91.72,91.666,1.4041505]
[1643409524648,15.61,91.72,91.676,6.0]
[1643409527349,15.61,91.72,91.698,0.3226245]
[1643409528053,31.982,91.72,91.698,0.3226245]
[1643409530882,31.982,91.72,91.699,1.4041505]
[1643409533784,31.982,91.72,91.698,7.5e-05]
[1643409542599,31.982,91.72,91.633,24.3367]
[1643409544000,1.47162698,91.717,91.633,24.3367]
[1643409544200,1.47162698,91.718,91.633,24.3367]
[1643409544602,16.374,91.71,91.633,24.3367]
[1643409544799,15.61,91.7,91.633,24.3367]
[1643409545102,265.9228,91.73,91.633,24.3367]
[1643409545103,15.61,91.69,91.633,24.3367]
[1643409556655,15.61,91.69,91.605,1.51648634]
[1643409557051,15.61,91.69,91.604,1.51648634]
[1643409557250,15.61,91.69,91.602,24.7697]
[1643409557251,15.61,91.69,91.603,1.51648634]
[1643409557452,15.61,91.69,91.602,26.28618634]
[1643409557753,15.61,91.69,91.603,23.4187]
[1643409561252,15.61,91.69,91.603,24.93518634]
[1643409562255,15.61,91.69,91.606,1.51648634]
[1643409562655,15.61,91.69,91.604,1.51648634]
[1643409563058,15.61,91.69,91.606,1.51648634]
[1643409563258,15.61,91.69,91.605,1.51648634]
[1643409564456,15.61,91.69,91.606,1.51648634]
[1643409565458,15.61,91.69,91.603,23.4187]
[1643409568962,31.987,91.69,91.603,23.4187]
[1643409573872,31.987,91.69,91.604,1.51648634]
[1643409574173,31.987,91.69,91.603,24.93518634]
[1643409575792,31.987,91.69,91.604,1.51648634]
[1643409576490,31.987,91.69,91.603,24.93518634]
[1643409576790,31.987,91.69,91.605,1.51648634]
[1643409577190,31.987,91.69,91.603,24.93518634]
[1643409577391,31.987,91.69,91.608,1.51648634]
[1643409577992,31.987,91.69,91.609,1.51648634]
[1643409579395,31.987,91.69,91.632,23.6551]
[1643409601016,33.45862698,91.69,91.632,23.6551]
[1643409602313,1.47162698,91.686,91.632,23.6551]
[1643409602515,1.47162698,91.688,91.632,23.6551]
[1643409604617,1.47162698,91.689,91.632,23.6551]
[1643409606223,1.47162698,91.688,91.632,23.6551]
[1643409606424,1.47162698,91.687,91.632,23.6551]
[1643409607523,1.47162698,91.688,91.632,23.6551]
[1643409608152,1.47162698,91.686,91.632,23.6551]
[1643409608525,1.47162698,91.687,91.632,23.6551]
[1643409609423,1.47162698,91.688,91.632,23.6551]
[1643409610025,1.47162698,91.685,91.632,23.6551]
[1643409610623,1.47162698,91.683,91.632,23.6551]
[1643409611023,1.47162698,91.685,91.632,23.6551]
[1643409611225,1.47162698,91.682,91.632,23.6551]
[1643409611625,1.47162698,91.684,91.632,23.6551]
[1643409611828,1.47162698,91.688,91.632,23.6551]
[1643409612026,1.47162698,91.685,91.632,23.6551]
[1643409612628,1.47162698,91.689,91.632,23.6551]
[1643409614628,1.47162698,91.688,91.632,23.6551]
[1643409615230,1.47162698,91.689,91.632,23.6551]
[1643409615430,33.45862698,91.69,91.632,23.6551]
[1643409618560,1.47162698,91.689,91.632,23.6551]
[1643409619962,1.47162698,91.688,91.632,23.6551]
[1643409620163,31.987,91.69,91.632,23.6551]
[1643409620164,1.47162698,91.687,91.632,23.6551]
[1643409620363,1.47162698,91.688,91.632,23.6551]
[1643409620764,1.47162698,91.689,91.632,23.6551]
[1643409622866,1.47162698,91.687,91.632,23.6551]
[1643409624766,16.379,91.68,91.632,23.6551]
[1643409624969,31.989,91.68,91.632,23.6551]
[1643409628470,31.989,91.68,91.602,24.7697]
[1643409630075,33.46062698,91.68,91.602,24.7697]
[1643409632380,1.47162698,91.678,91.602,24.7697]
[1643409632582,16.382,91.67,91.602,24.7697]
[1643409632782,15.61,91.66,91.602,24.7697]
[1643409638814,31.992,91.66,91.602,24.7697]
[1643409641517,31.992,91.66,91.603,24.1172]
[1643409707740,33.46362698,91.66,91.603,24.1172]
[1643409708039,1.47162698,91.659,91.603,24.1172]
[1643409708239,54.627,91.65,91.603,24.1172]
[1643409708439,15.61,91.64,91.603,24.1172]
[1643409710842,15.61,91.64,91.631,19.61381001]
[1643409711045,18.64210003,91.64,91.631,19.61381001]
[1643409714443,18.64210003,91.64,91.631,3.15001001]
[1643409746799,1.47162698,91.639,91.631,3.15001001]
[1643409747005,15.61,91.64,91.631,3.15001001]
[1643409762447,28.52276136,91.639,91.631,3.15001001]
[1643409762646,15.61,91.64,91.631,3.15001001]
[1643409763046,28.52311355,91.639,91.631,3.15001001]
[1643409764049,15.61,91.64,91.631,3.15001001]
[1643409764247,28.52312297,91.639,91.631,3.15001001]
[1643409765950,15.61,91.64,91.631,3.15001001]
[1643409769965,0.61,91.64,91.631,3.15001001]
[1643409775197,28.13309942,91.649,91.631,3.15001001]
[1643409775497,15.61,91.64,91.631,3.15001001]
[1643409779201,16.386,91.65,91.631,3.15001001]
[1643409779401,15.61,91.64,91.631,3.15001001]
[1643409812285,1.47162698,91.669,91.631,3.15001001]
[1643409812486,31.992,91.67,91.631,3.15001001]
[1643409818996,1.47162698,91.668,91.631,3.15001001]
[1643409819397,16.383,91.66,91.631,3.15001001]
[1643409819598,31.993,91.66,91.631,3.15001001]
[1643409826209,16.383,91.66,91.631,3.15001001]
[1643409856974,31.993,91.66,91.631,3.15001001]
[1643409908283,33.46462698,91.66,91.631,3.15001001]
[1643409909285,31.993,91.66,91.631,3.15001001]
[1643409909885,1.47162698,91.656,91.631,3.15001001]
[1643409910086,16.391,91.65,91.631,3.15001001]
[1643409910384,15.61,91.64,91.631,3.15001001]
[1643409914593,210.71,91.64,91.631,3.15001001]
[1643409914792,210.71,91.64,91.557,1.51648634]
[1643409915093,16.394,91.62,91.543,1.51648634]
[1643409915294,15.61,91.61,91.538,1.51648634]
[1643409915492,15.61,91.61,91.534,23.0154]
[1643409916995,16.394,91.59,91.534,23.0154]
[1643409917194,32.004,91.59,91.534,23.0154]
[1643409942355,32.004,91.59,91.536,1.51648634]
[1643409942556,32.004,91.59,91.537,1.51648634]
[1643409943256,32.004,91.59,91.536,1.51648634]
[1643409944257,32.004,91.59,91.537,1.51648634]
[1643409944758,32.004,91.59,91.535,1.51648634]
[1643409945158,16.394,91.59,91.538,1.51648634]
[1643409947065,16.394,91.59,91.539,1.51648634]
[1643409947466,15.61,91.58,91.539,1.51648634]
[1643409947660,32.006,91.58,91.534,23.0154]
[1643409959795,32.006,91.58,91.521,0.0453138]
[1643409981843,32.006,91.58,91.521,1.56180014]
[1643409982244,32.006,91.58,91.522,1.51648634]
[1643409984545,32.006,91.58,91.524,1.51648634]
[1643409984746,32.006,91.58,91.523,1.51648634]
[1643409984950,32.006,91.58,91.522,1.51648634]
[1643409985147,32.006,91.58,91.521,1.56180014]
[1643409985547,32.006,91.58,91.521,0.0453138]
[1643409986749,22.531,91.579,91.521,0.0453138]
[1643409986949,16.399,91.57,91.521,0.0453138]
[1643409987951,32.009,91.57,91.521,0.0453138]
[1643410001865,40.949,91.57,91.521,0.0453138]
[1643410005569,40.949,91.57,91.513,7.8042138]
[1643410005966,24.6796,91.569,91.486,1.51648634]
[1643410006166,24.6796,91.569,91.485,1.51648634]
[1643410006367,16.403,91.55,91.485,1.51648634]
[1643410006567,32.013,91.55,91.485,1.51648634]
[1643410006768,32.013,91.55,91.481,1.51648634]
[1643410007369,32.013,91.55,91.48,1.51648634]
[1643410007570,32.013,91.55,91.481,1.51648634]
[1643410008371,32.013,91.55,91.479,1.51648634]
[1643410008571,32.013,91.55,91.477,1.51648634]
[1643410008771,32.013,91.55,91.475,0.45]
[1643410008772,32.013,91.55,91.479,1.51648634]
[1643410008971,32.013,91.55,91.48,1.51648634]
[1643410009171,32.013,91.55,91.479,1.51648634]
[1643410010775,32.013,91.55,91.477,1.51648634]
[1643410010973,32.013,91.55,91.476,1.51648634]
[1643410011471,32.013,91.55,91.478,1.51648634]
[1643410011874,32.013,91.55,91.475,0.2]
[1643410011875,32.013,91.55,91.476,1.51648634]
[1643410012173,32.013,91.55,91.477,1.51648634]
[1643410012372,32.013,91.55,91.479,1.51648634]
[1643410012772,32.013,91.55,91.48,0.25]
[1643410012974,32.013,91.55,91.478,1.51648634]
[1643410013379,32.013,91.55,91.476,1.51648634]
[1643410013779,23.6442,91.549,91.478,1.51648634]
[1643410013978,16.403,91.53,91.478,1.51648634]
[1643410014178,16.403,91.53,91.479,0.25]
[1643410014377,16.403,91.53,91.477,1.76648634]
[1643410014582,16.403,91.53,91.478,1.51648634]
[1643410014777,16.403,91.53,91.479,0.25]
[1643410015577,16.403,91.53,91.479,1.76648634]
[1643410015981,16.403,91.53,91.479,0.25]
[1643410016582,16.403,91.53,91.479,1.51648634]
[1643410016779,16.403,91.53,91.478,1.51648634]
[1643410018980,16.403,91.53,91.478,1.01648634]
[1643410019181,16.403,91.53,91.475,0.2]
[1643410019382,16.403,91.53,91.475,0.45]
[1643410021810,16.403,91.53,91.475,0.2]
[1643410023411,16.403,91.53,91.475,0.45]
[1643410029320,16.403,91.53,91.475,0.2]
[1643410029920,16.403,91.53,91.475,0.45]
[1643410030923,32.013,91.53,91.475,0.45]
[1643410032021,32.013,91.53,91.475,0.2]
[1643410039635,32.013,91.53,91.475,0.45]
[1643410040237,32.013,91.53,91.475,0.2]
[1643410040838,32.013,91.55,91.475,0.45]
[1643410045342,23.1134,91.549,91.475,0.45]
[1643410048847,22.6134,91.549,91.475,0.2]
[1643410050248,22.6134,91.549,91.475,0.45]
[1643410050850,22.6134,91.549,91.475,0.2]
[1643410052149,22.6134,91.549,91.475,0.45]
[1643410057979,16.404,91.54,91.475,0.45]
[1643410058180,23.0173,91.539,91.475,0.45]
[1643410064686,23.0173,91.539,91.484,6.0]
[1643410065488,23.0173,91.539,91.485,0.25]
[1643410065689,16.404,91.54,91.485,0.25]
[1643410066489,15.61,91.55,91.485,0.25]
[1643410066688,15.61,91.55,91.485,22.8174]
[1643410066888,15.61,91.55,91.485,23.0174]
[1643410067088,15.61,91.55,91.495,6.0]
[1643410067289,15.61,91.55,91.496,22.7806]
[1643410068093,32.012,91.55,91.496,22.7806]
[1643410069292,32.012,91.55,91.497,0.25]
[1643410072297,32.012,91.55,91.496,22.7806]
[1643410073695,32.012,91.55,91.497,0.25]
[1643410081499,32.012,91.55,91.497,107.75]
[1643410081699,32.012,91.55,91.497,0.25]
[1643410081896,32.012,91.55,91.497,107.75]
[1643410082299,32.012,91.55,91.498,0.25]
[1643410082601,32.012,91.55,91.496,22.7806]
[1643410082902,32.012,91.55,91.497,0.25]
[1643410083301,16.402,91.55,91.497,0.25]
[1643410084705,16.402,91.55,91.496,22.7806]
[1643410085107,16.402,91.55,91.497,0.25]
[1643410087508,32.007,91.57,91.497,0.25]
[1643410087711,16.397,91.57,91.497,0.25]
[1643410090032,16.397,91.57,91.496,22.7806]
[1643410091333,16.397,91.57,91.497,0.25]
[1643410093532,32.007,91.57,91.497,0.25]
[1643410094340,32.007,91.57,91.506,6.0]
[1643410094739,32.007,91.57,91.507,0.25]
[1643410095839,32.007,91.57,91.497,0.25]
[1643410096037,32.007,91.57,91.506,6.0]
[1643410096238,24.3277,91.569,91.506,6.0]
[1643410096438,24.3277,91.569,91.507,0.25]
[1643410097639,24.3277,91.569,91.497,0.25]
[1643410098041,24.3277,91.569,91.506,6.0]
[1643410098346,24.3277,91.569,91.507,0.25]
[1643410099241,24.3277,91.569,91.507,24.9566]
[1643410106250,24.3277,91.569,91.517,6.0]
[1643410106651,24.3277,91.569,91.518,0.25]
[1643410107762,24.3277,91.569,91.508,0.25]
[1643410111756,24.3277,91.569,91.507,24.7066]
[1643410111958,16.399,91.56,91.507,24.7066]
[1643410119663,16.399,91.56,91.508,0.25]
[1643410120165,16.399,91.56,91.507,24.7066]
[1643410128370,16.399,91.56,91.508,0.25]
[1643410128571,16.399,91.56,91.507,24.7066]
[1643410129375,24.047,91.559,91.486,33.07664682]
[1643410129601,24.047,91.559,91.487,24.0798]
[1643410139221,24.047,91.559,91.493,1.52173458]
[1643410139624,24.047,91.559,91.494,0.25]
[1643410139822,24.047,91.559,91.494,1.77173458]
[1643410141825,24.047,91.559,91.495,1.52173458]
[1643410142026,24.047,91.559,91.494,0.25]
[1643410142229,24.047,91.559,91.492,1.52173458]
[1643410142426,24.047,91.559,91.492,0.25]
[1643410142627,24.047,91.559,91.489,1.77173458]
[1643410143126,24.047,91.559,91.489,0.25]
[1643410143327,24.047,91.559,91.49,1.52173458]
[1643410143526,24.047,91.559,91.492,1.52173458]
[1643410143927,24.047,91.559,91.493,0.25]
[1643410145329,24.047,91.559,91.492,0.25]
[1643410146533,24.047,91.559,91.49,0.25]
[1643410146932,24.047,91.559,91.489,107.75]
[1643410147933,24.047,91.559,91.489,109.27173458]
[1643410148356,24.047,91.559,91.489,107.75]
[1643410148735,24.047,91.559,91.489,109.27173458]
[1643410149533,24.047,91.559,91.49,1.52173458]
[1643410149936,24.047,91.559,91.491,0.25]
[1643410150134,24.047,91.559,91.489,109.27173458]
[1643410151137,24.047,91.559,91.491,107.5]
[1643410151337,24.047,91.559,91.492,0.25]
[1643410158467,24.047,91.559,91.491,107.5]
[1643410159468,24.047,91.559,91.492,44.5360543]
[1643410159769,24.047,91.559,91.493,0.25]
[1643410160174,24.047,91.559,91.493,44.7860543]
[1643410160568,24.047,91.559,91.493,44.5360543]
[1643410163769,24.047,91.559,91.494,0.25]
[1643410165474,24.047,91.559,91.493,44.5360543]
[1643410165671,24.047,91.559,91.494,0.25]
[1643410166570,24.047,91.559,91.493,44.5360543]
[1643410167472,16.4,91.55,91.493,44.5360543]
[1643410167978,32.01,91.55,91.493,44.5360543]
[1643410168373,24.3859,91.549,91.472,0.2]
[1643410168672,16.405,91.53,91.47,1.52173458]
[1643410168873,24.0207,91.529,91.467,1.52173458]
[1643410169073,24.0207,91.529,91.458,1.72173458]
[1643410169273,24.0207,91.529,91.458,0.2]
[1643410169473,24.0207,91.529,91.447,1.52173458]
[1643410169474,1.50055401,91.528,91.447,1.52173458]
[1643410169671,1.50055401,91.528,91.435,23.3025]
[1643410169672,1.50055401,91.526,91.445,1.52173458]
[1643410170073,1.50055401,91.526,91.444,1.52173458]
[1643410170583,1.50055401,91.511,91.434,0.2]
[1643410170775,15.61,91.5,91.434,0.2]
[1643410170972,15.61,91.49,91.434,0.2]
[1643410171574,15.61,91.49,91.432,0.239837]
[1643410171976,16.415,91.48,91.432,0.239837]
[1643410172475,32.025,91.48,91.432,0.239837]
[1643410178282,19.62720326,91.479,91.432,0.239837]
[1643410178482,16.425,91.47,91.432,0.239837]
[1643410178686,15.61,91.46,91.432,0.239837]
[1643410179383,19.62720326,91.459,91.432,0.239837]
[1643410179583,16.425,91.45,91.432,0.239837]
[1643410179782,15.61,91.44,91.432,0.239837]
[1643410180186,15.61,91.44,91.357,0.2]
[1643410180588,16.429,91.43,91.357,0.2]
[1643410180791,15.61,91.42,91.357,0.2]
[1643410180985,15.61,91.42,91.336,0.5531882]
[1643410181185,15.61,91.42,91.39,0.0001]
[1643410181586,16.432,91.41,91.39,0.0001]
[1643410181786,32.042,91.41,91.39,0.0001]
[1643410183491,227.142,91.41,91.336,0.5531882]
[1643410183695,211.538,91.4,91.336,0.5531882]
[1643410183890,15.61,91.39,91.336,0.5531882]
[1643410184293,20.91030326,91.389,91.336,0.5531882]
[1643410185092,16.44,91.38,91.336,0.5531882]
[1643410185293,32.05,91.38,91.336,0.5531882]
[1643410185594,52.96030326,91.38,91.336,0.5531882]
[1643410187497,258.75030326,91.38,91.336,0.5531882]
[1643410187696,195.1,91.37,91.336,0.5531882]
[1643410187995,32.055,91.36,91.336,0.5531882]
[1643410188399,20.91030326,91.359,91.336,0.5531882]
[1643410188798,32.11030326,91.359,91.3,3.286247]
[1643410188998,249.916,91.35,91.3,2.82952806]
[1643410189199,15.61,91.34,91.3,2.82952806]